lending/lending_fUSD_20240731
["ID","MTS","AMOUNT","RATE_DAILY","PERIOD"]
[333721458,1722408271456,-500.0,0.00044109,120]
[333721459,1722408271487,-500.0,0.00044109,120]
[333721460,1722408271521,-1378.48,0.00044109,120]
[333721461,1722408271554,-534.97,0.00044109,120]
[333721462,1722408271587,-2724.22,0.00044109,120]
[333721463,1722408271623,-500.0,0.00044109,120]
[333721464,1722408271656,-500.0,0.00044109,120]
[333721465,1722408271687,-500.0,0.00044109,120]
[333721466,1722408271719,-2592.84,0.00044109,120]
[333721467,1722408271750,-3772.53,0.00044109,120]
[333721468,1722408271781,-1325.58,0.00044109,120]
[333721469,1722408271812,-500.0,0.00044109,120]
[333721470,1722408271844,-2771.65,0.00044109,120]
[333721471,1722408271876,-643.86,0.00044109,120]
[333721472,1722408271910,-500.0,0.00044109,120]
[333721473,1722408271941,-518.0373178,0.00044109,120]
[333721474,1722408271972,-1216.71,0.00044109,120]
[333721475,1722408272004,-1917.75,0.00044109,120]
[333721476,1722408272036,-1849.58,0.00044109,120]
[333721477,1722408272068,-500.0,0.00044109,120]
[333721478,1722408272099,-662.07,0.00044109,120]
[333721479,1722408272134,-515.61629165,0.00044109,30]
[333721480,1722408272167,-1824.68,0.00044109,120]
[333721481,1722408272202,-500.0,0.00044109,120]
[333721482,1722408272236,-1916.29,0.00044109,120]
[333721483,1722408272269,-500.0,0.00044109,120]
[333721484,1722408272301,-500.0,0.00044109,120]
[333721485,1722408272332,-1180.34,0.00044109,120]
[333721486,1722408272363,-500.0,0.00044109,120]
[333721487,1722408272395,-500.0,0.00044109,120]
[333721488,1722408272425,-2919.98,0.00044109,120]
[333721489,1722408272456,-500.0,0.00044109,120]
[333721490,1722408272486,-500.0,0.00044109,120]
[333721491,1722408272517,-500.0,0.00044109,120]
[333721492,1722408272547,-500.0,0.00044109,120]
[333721493,1722408272579,-1585.71,0.00044109,120]
[333721494,1722408272610,-500.0,0.00044109,120]
[333721495,1722408272640,-500.0,0.00044109,120]
[333721496,1722408272673,-1083.89,0.00044109,120]
[333721497,1722408272703,-500.0,0.00044109,120]
[333721498,1722408272733,-500.0,0.00044109,120]
[333721499,1722408272765,-1134.13,0.00044109,120]
[333721500,1722408272795,-500.0,0.00044109,120]
[333721501,1722408272828,-811.79,0.00044109,120]
[333721502,1722408272861,-1395.16,0.00044109,120]
[333721503,1722408272893,-500.0,0.00044109,120]
[333721504,1722408272924,-500.0,0.00044109,120]
[333721505,1722408272955,-500.0,0.00044109,120]
[333721506,1722408272985,-561.99,0.00044109,120]
[333721507,1722408273016,-500.0,0.00044109,120]
[333721508,1722408273050,-4315.29,0.00044109,120]
[333721509,1722408273082,-640.96,0.00044109,120]
[333721510,1722408273115,-1109.51,0.00044109,120]
[333721511,1722408273148,-500.0,0.00044109,120]
[333721512,1722408273180,-556.47,0.00044109,120]
[333721513,1722408273212,-500.0,0.00044109,120]
[333721514,1722408273245,-556.0,0.00044109,120]
[333721515,1722408273279,-982.35,0.00044109,120]
[333721516,1722408273313,-529.17077858,0.00044109,120]
[333721517,1722408273348,-500.0,0.00044109,120]
[333721518,1722408273388,-537.84,0.00044109,120]
[333721519,1722408273423,-500.0,0.00044109,120]
[333721520,1722408273456,-500.0,0.00044109,120]
[333721521,1722408273491,-500.0,0.00044109,120]
[333721522,1722408273524,-500.0,0.00044109,120]
[333721523,1722408273559,-500.0,0.00044109,120]
[333721524,1722408273593,-663.39,0.00044109,120]
[333721525,1722408273629,-500.0,0.00044109,120]
[333721526,1722408273666,-812.81,0.00044109,120]
[333721527,1722408273700,-500.0,0.00044109,120]
[333721528,1722408273736,-550.81,0.00044109,120]
[333721529,1722408273770,-500.0,0.00044109,120]
[333721530,1722408273805,-1485.45,0.00044109,120]
[333721531,1722408273839,-500.0,0.00044109,120]
[333721532,1722408273874,-500.0,0.00044109,120]
[333721533,1722408273908,-500.0,0.00044109,120]
[333721534,1722408273942,-1212.6,0.00044109,120]
[333721535,1722408273977,-500.0,0.00044109,120]
[333721536,1722408274012,-1677.21,0.00044109,120]
[333721537,1722408274047,-1252.77,0.00044109,120]
[333721538,1722408274081,-500.0,0.00044109,120]
[333721539,1722408274115,-2203.32,0.00044109,120]
[333721540,1722408274150,-1241.82,0.00044109,120]
[333721541,1722408274185,-2111.06,0.00044109,120]
[333721542,1722408274217,-500.0,0.00044109,120]
[333721543,1722408274251,-500.0,0.00044109,120]
[333721544,1722408274285,-500.0,0.00044109,120]
[333721545,1722408274319,-500.0,0.00044109,120]
[333721546,1722408274353,-500.0,0.00044109,120]
[333721547,1722408274387,-500.0,0.00044109,120]
[333721548,1722408274422,-929.39,0.00044109,120]
[333721549,1722408274456,-365.26302762,0.00044109,120]
[333721550,1722408274489,-500.0,0.00044109,120]
[333721551,1722408274523,-510.87455304,0.00044109,120]
[333721552,1722408274767,-500.0,0.00044109,120]
[333721553,1722408274803,-1400.84,0.00044109,120]
[333721554,1722408274837,-500.0,0.00044109,120]
[333721555,1722408274873,-2810.79,0.00044109,120]
[333721556,1722408274906,-745.39,0.00044109,120]
[333721557,1722408274939,-521.99446903,0.00044109,120]
[333721558,1722408274972,-500.0,0.00044109,120]
[333721559,1722408275005,-729.12,0.00044109,120]
[333721560,1722408275037,-503.1464435,0.00044109,120]
[333721561,1722408275072,-523.38309346,0.00044109,120]
[333721562,1722408275108,-500.0,0.00044109,120]
[333721563,1722408275145,-2747.42,0.00044109,120]
[333721564,1722408275181,-500.0,0.00044109,120]
[333721565,1722408275215,-1288.86,0.00044109,120]
[333721566,1722408275251,-2000.0,0.00044109,30]
[333721567,1722408275284,-500.0,0.00044109,120]
[333721568,1722408275319,-500.0,0.00044109,120]
[333721569,1722408275351,-500.0,0.00044109,120]
[333721570,1722408275385,-500.0,0.00044109,120]
[333721571,1722408275418,-500.0,0.00044109,120]
[333721572,1722408275450,-511.94557664,0.00044109,120]
[333721573,1722408275484,-3293.78,0.00044109,120]
[333721574,1722408275517,-1035.44,0.00044109,120]
[333721575,1722408275550,-500.0,0.00044109,120]
[333721576,1722408275585,-5027.11,0.00044109,120]
[333721577,1722408275619,-500.0,0.00044109,120]
[333721578,1722408275651,-500.0,0.00044109,120]
[333721579,1722408275684,-500.0,0.00044109,120]
[333721580,1722408275718,-500.0,0.00044109,120]
[333721581,1722408275752,-500.0,0.00044109,120]
[333721582,1722408275787,-1169.74,0.00044109,120]
[333721583,1722408275822,-708.85,0.00044109,120]
[333721584,1722408275857,-500.0,0.00044109,120]
[333721585,1722408275891,-1765.8,0.00044109,120]
[333721586,1722408275924,-500.0,0.00044109,120]
[333721587,1722408275957,-500.0,0.00044109,120]
[333721588,1722408275990,-500.0,0.00044109,120]
[333721589,1722408276023,-500.0,0.00044109,120]
[333721590,1722408276055,-500.0,0.00044109,120]
[333721591,1722408276088,-2105.25,0.00044109,120]
[333721592,1722408276122,-744.28,0.00044109,120]
[333721593,1722408276156,-500.0,0.00044109,120]
[333721594,1722408276189,-500.0,0.00044109,120]
[333721595,1722408276223,-500.0,0.00044109,120]
[333721596,1722408276256,-500.0,0.00044109,120]
[333721597,1722408276290,-500.0,0.00044109,120]
[333721598,1722408276323,-500.0,0.00044109,120]
[333721599,1722408276357,-522.34,0.00044109,120]
[333721600,1722408276392,-552.87815144,0.00044109,120]
[333721601,1722408276430,-500.0,0.00044109,120]
[333721602,1722408276464,-3566.5,0.00044109,120]
[333721603,1722408276496,-598.27711107,0.00044109,120]
[333721604,1722408276529,-500.0,0.00044109,120]
[333721605,1722408276561,-500.0,0.00044109,120]
[333721606,1722408276594,-9736.19,0.00044109,120]
[333721607,1722408276629,-500.0,0.00044109,120]
[333721608,1722408276662,-500.0,0.00044109,120]
[333721609,1722408276694,-500.0,0.00044109,120]
[333721610,1722408276727,-536.18398744,0.00044109,120]
[333721611,1722408276760,-500.0,0.00044109,120]
[333721612,1722408276792,-1217.53,0.00044109,120]
[333721613,1722408276825,-500.0,0.00044109,120]
[333721614,1722408276859,-500.0,0.00044109,120]
[333721615,1722408276891,-500.0,0.00044109,120]
[333721616,1722408276925,-9161.82,0.00044109,120]
[333721617,1722408276958,-500.0,0.00044109,120]
[333721618,1722408276992,-500.0,0.00044109,120]
[333721619,1722408277026,-500.0,0.00044109,120]
[333721620,1722408277059,-694.12,0.00044109,120]
[333721621,1722408277092,-500.0,0.00044109,120]
[333721622,1722408277129,-500.0,0.00044109,120]
[333721623,1722408277162,-500.0,0.00044109,120]
[333721624,1722408277196,-504.47758725,0.00044109,120]
[333721625,1722408277230,-820.81,0.00044109,120]
[333721626,1722408277263,-2360.71,0.00044109,120]
[333721627,1722408277297,-535.54,0.00044109,120]
[333721628,1722408277331,-500.0,0.00044109,120]
[333721629,1722408277363,-500.0,0.00044109,120]
[333721630,1722408277395,-549.99,0.00044109,120]
[333721631,1722408277428,-500.0,0.00044109,120]
[333721632,1722408277460,-500.0,0.00044109,120]
[333721633,1722408277492,-500.0,0.00044109,120]
[333721634,1722408277523,-513.65103875,0.00044109,120]
[333721635,1722408277554,-582.33949083,0.00044109,120]
[333721636,1722408277586,-411.7730195,0.00044109,120]
[333721637,1722408277618,-469.91171386,0.00044109,120]
[333721638,1722408277650,-1314.32,0.00044109,120]
[333721639,1722408277681,-500.0,0.00044109,120]
[333721640,1722408277713,-500.0,0.00044109,120]
[333721641,1722408277746,-500.0,0.00044109,120]
[333721642,1722408277778,-1173.68,0.00044109,120]
[333721643,1722408277813,-924.82,0.00044109,120]
[333721644,1722408277845,-640.72,0.00044109,120]
[333721645,1722408277879,-1099.48,0.00044109,120]
[333721646,1722408277911,-500.0,0.00044109,120]
[333721647,1722408277942,-500.0,0.00044109,120]
[333721648,1722408277974,-500.0,0.00044109,120]
[333721649,1722408278006,-1999.0,0.00044246,120]
[333721650,1722408278047,-1999.0,0.00044383,120]
[333721651,1722408278102,-809.59,0.00044383,120]
[333721652,1722408278143,-500.0,0.00044383,120]
[333721653,1722408278176,-500.0,0.00044383,120]
[333721654,1722408278426,-474.89137943,0.00044383,120]
[333721655,1722408278462,-500.0,0.00044383,120]
[333721656,1722408278498,-516.42663622,0.00044383,120]
[333721657,1722408278531,-500.0,0.00044383,120]
[333721658,1722408278564,-500.0,0.00044383,120]
[333721659,1722408278597,-500.0,0.00044383,120]
[333721660,1722408278631,-500.0,0.00044383,120]
[333721661,1722408278664,-500.0,0.00044383,120]
[333721662,1722408278696,-1012.07,0.00044383,120]
[333721663,1722408278729,-500.0,0.00044383,120]
[333721664,1722408278761,-500.0,0.00044383,120]
[333721665,1722408278794,-500.0,0.00044383,120]
[333721666,1722408278826,-500.0,0.00044383,120]
[333721667,1722408278860,-500.0,0.00044383,120]
[333721668,1722408278893,-749.06,0.00044383,120]
[333721669,1722408278925,-481.24079665,0.00044383,120]
[333721670,1722408278959,-1080.35,0.00044383,120]
[333721671,1722408278997,-500.0,0.00044383,120]
[333721672,1722408279038,-500.0,0.00044383,120]
[333721673,1722408279076,-484.18634578,0.00044383,120]
[333721674,1722408279117,-500.0,0.00044383,120]
[333721675,1722408279151,-500.0,0.00044383,120]
[333721676,1722408279189,-500.0,0.00044383,120]
[333721677,1722408279224,-500.0,0.00044383,120]
[333721678,1722408279258,-500.0,0.00044383,120]
[333721679,1722408279291,-500.0,0.00044383,120]
[333721680,1722408279325,-500.0,0.00044383,120]
[333721681,1722408279361,-500.0,0.00044383,120]
[333721682,1722408279396,-500.0,0.00044383,120]
[333721683,1722408279428,-500.0,0.00044383,120]
[333721684,1722408279461,-500.0,0.00044383,120]
[333721685,1722408279494,-500.0,0.00044383,120]
[333721686,1722408279528,-892.88,0.00044383,120]
[333721687,1722408279563,-500.0,0.00044383,120]
[333721688,1722408279596,-524.98,0.00044383,120]
[333721689,1722408279634,-500.0,0.00044383,120]
[333721690,1722408279669,-601.25,0.00044383,120]
[333721691,1722408279701,-500.0,0.00044383,120]
[333721692,1722408279735,-500.0,0.00044383,120]
[333721693,1722408279768,-500.0,0.00044383,120]
[333721694,1722408279800,-500.0,0.00044383,120]
[333721695,1722408279833,-500.0,0.00044383,120]
[333721696,1722408279869,-500.0,0.00044383,120]
[333721697,1722408279903,-500.0,0.00044383,120]
[333721698,1722408279937,-500.0,0.00044383,120]
[333721699,1722408279970,-500.0,0.00044383,120]
[333721700,1722408280003,-500.0,0.00044383,120]
[333721701,1722408280036,-500.0,0.00044383,120]
[333721702,1722408280070,-777.39,0.00044383,120]
[333721703,1722408280107,-500.0,0.00044383,120]
[333721704,1722408280142,-601.92,0.00044383,120]
[333721705,1722408280178,-525.51,0.00044383,120]
[333721706,1722408280211,-1956.03,0.00044383,120]
[333721707,1722408280243,-500.0,0.00044383,120]
[333721708,1722408280277,-500.0,0.00044383,120]
[333721709,1722408280309,-500.0,0.00044383,120]
[333721710,1722408280342,-500.0,0.00044383,120]
[333721711,1722408280374,-500.0,0.00044383,120]
[333721712,1722408280407,-2418.8,0.00044383,120]
[333721713,1722408280439,-500.0,0.00044383,120]
[333721714,1722408280472,-500.0,0.00044383,120]
[333721715,1722408280503,-500.0,0.00044383,120]
[333721716,1722408280534,-500.0,0.00044383,120]
[333721717,1722408280566,-500.0,0.00044383,120]
[333721718,1722408280598,-500.0,0.00044383,120]
[333721719,1722408280631,-974.15,0.00044383,120]
[333721720,1722408280663,-500.0,0.00044383,120]
[333721721,1722408280696,-1315.36,0.00044383,120]
[333721722,1722408280728,-500.0,0.00044383,120]
[333721723,1722408280760,-537.39,0.00044383,120]
[333721724,1722408280794,-500.0,0.00044383,120]
[333721725,1722408280827,-1485.9,0.00044383,120]
[333721726,1722408280860,-834.44,0.00044383,120]
[333721727,1722408280894,-571.25,0.00044383,120]
[333721728,1722408280925,-500.0,0.00044383,120]
[333721729,1722408280957,-358.76426927,0.00044383,120]
[333721730,1722408280988,-500.0,0.00044383,120]
[333721731,1722408281019,-500.0,0.00044383,120]
[333721732,1722408281050,-500.0,0.00044383,120]
[333721733,1722408281081,-500.0,0.00044383,120]
[333721734,1722408281114,-1001.53,0.00044383,120]
[333721735,1722408281147,-502.66346738,0.00044383,120]
[333721736,1722408281181,-990.69,0.00044383,120]
[333721737,1722408281214,-220.11305938,0.00044383,120]
[333721738,1722408281247,-500.0,0.00044383,120]
[333721739,1722408281280,-1459.65,0.00044383,120]
[333721740,1722408281313,-500.0,0.00044383,120]
[333721741,1722408281345,-500.0,0.00044383,120]
[333721742,1722408281378,-500.0,0.00044383,120]
[333721743,1722408281410,-1167.38,0.00044383,120]
[333721744,1722408281442,-500.0,0.00044383,120]
[333721745,1722408281474,-500.0,0.00044383,120]
[333721746,1722408281506,-804.86,0.00044383,120]
[333721747,1722408281539,-500.0,0.00044383,120]
[333721748,1722408281571,-1591.08,0.00044383,120]
[333721749,1722408281602,-500.0,0.00044383,120]
[333721750,1722408281634,-500.0,0.00044383,120]
[333721751,1722408281665,-762.19,0.00044383,120]
[333721752,1722408281696,-500.0,0.00044383,120]
[333721753,1722408281730,-548.29,0.00044383,120]
[333721754,1722408281765,-647.54,0.00044383,120]
[333721755,1722408281796,-500.0,0.00044383,120]
[333721756,1722408281829,-500.0,0.00044383,120]
[333721757,1722408281863,-500.0,0.00044383,120]
[333721758,1722408282101,-500.0,0.00044383,120]
[333721759,1722408282140,-500.0,0.00044383,120]
[333721760,1722408282175,-500.0,0.00044383,120]
[333721761,1722408282213,-500.0,0.00044383,120]
[333721762,1722408282246,-500.0,0.00044383,120]
[333721763,1722408282279,-1601.94,0.00044383,120]
[333721764,1722408282312,-639.66,0.00044383,120]
[333721765,1722408282344,-808.73,0.00044383,120]
[333721766,1722408282376,-544.46,0.00044383,120]
[333721767,1722408282409,-1015.61,0.00044383,120]
[333721768,1722408282442,-500.0,0.00044383,120]
[333721769,1722408282474,-505.85215999,0.00044383,120]
[333721770,1722408282506,-500.0,0.00044383,30]
[333721771,1722408282540,-500.0,0.00044383,120]
[333721772,1722408282574,-608.97,0.00044383,120]
[333721773,1722408282605,-500.0,0.00044383,120]
[333721774,1722408282639,-2194.78,0.00044383,120]
[333721775,1722408282672,-500.0,0.00044383,120]
[333721776,1722408282704,-500.0,0.00044383,120]
[333721777,1722408282738,-1402.78,0.00044383,120]
[333721778,1722408282769,-500.0,0.00044383,120]
[333721779,1722408282803,-1191.54,0.00044383,120]
[333721780,1722408282834,-500.0,0.00044383,120]
[333721781,1722408282868,-500.0,0.00044383,120]
[333721782,1722408282899,-500.0,0.00044383,120]
[333721783,1722408282930,-500.0,0.00044383,120]
[333721784,1722408282961,-500.0,0.00044383,120]
[333721785,1722408282992,-500.0,0.00044383,120]
[333721786,1722408283023,-548.11,0.00044383,120]
[333721787,1722408283054,-500.0,0.00044383,120]
[333721788,1722408283085,-500.0,0.00044383,120]
[333721789,1722408283119,-1830.55,0.00044383,120]
[333721790,1722408283151,-572.98,0.00044383,120]
[333721791,1722408283184,-500.0,0.00044383,120]
[333721792,1722408283216,-1725.18,0.00044383,120]
[333721793,1722408283249,-780.28,0.00044383,120]
[333721794,1722408283284,-500.0,0.00044383,120]
[333721795,1722408283318,-1023.79,0.00044383,120]
[333721796,1722408283351,-500.0,0.00044383,120]
[333721797,1722408283386,-500.0,0.00044383,120]
[333721798,1722408283419,-716.91,0.00044383,120]
[333721799,1722408283453,-500.0,0.00044383,120]
[333721800,1722408283487,-507.07,0.00044383,120]
[333721801,1722408283524,-500.0,0.00044383,120]
[333721802,1722408283558,-500.0,0.00044383,120]
[333721803,1722408283591,-633.48220147,0.00044383,120]
[333721804,1722408283623,-500.0,0.00044383,120]
[333721805,1722408283656,-751.99,0.00044383,120]
[333721806,1722408283688,-500.0,0.00044383,120]
[333721807,1722408283721,-500.0,0.00044383,120]
[333721808,1722408283753,-500.0,0.00044383,120]
[333721809,1722408283786,-500.0,0.00044383,120]
[333721810,1722408283819,-500.0,0.00044383,120]
[333721811,1722408283851,-390.87230605,0.00044383,120]
[333721812,1722408283886,-957.83,0.00044383,120]
[333721813,1722408283919,-500.0,0.00044383,120]
[333721814,1722408283951,-500.0,0.00044383,120]
[333721815,1722408283984,-500.0,0.00044383,120]
[333721816,1722408284015,-500.0,0.00044383,120]
[333721817,1722408284048,-2783.89,0.00044383,120]
[333721818,1722408284079,-523.84926474,0.00044383,120]
[333721819,1722408284112,-500.0,0.00044383,120]
[333721820,1722408284147,-517.61,0.00044383,120]
[333721821,1722408284182,-506.75345007,0.00044383,120]
[333721822,1722408284217,-1429.89,0.00044383,120]
[333721823,1722408284250,-2890.73,0.00044383,120]
[333721824,1722408284283,-500.0,0.00044383,120]
[333721825,1722408284316,-1302.02,0.00044383,120]
[333721826,1722408284349,-500.0,0.00044383,120]
[333721827,1722408284383,-500.0,0.00044383,120]
[333721828,1722408284416,-500.0,0.00044383,120]
[333721829,1722408284452,-500.0,0.00044383,120]
[333721830,1722408284487,-500.0,0.00044383,120]
[333721831,1722408284520,-745.96,0.00044383,120]
[333721832,1722408284553,-515.32053848,0.00044383,120]
[333721833,1722408284587,-6835.07,0.00044383,120]
[333721834,1722408284618,-1812.2,0.00044383,120]
[333721835,1722408284650,-500.0,0.00044383,120]
[333721836,1722408284683,-3008.35,0.00044383,120]
[333721837,1722408284714,-500.0,0.00044383,120]
[333721838,1722408284747,-528.41,0.00044383,120]
[333721839,1722408284784,-500.0,0.00044383,120]
[333721840,1722408284820,-605.31,0.00044383,120]
[333721841,1722408284857,-561.58,0.00044383,120]
[333721842,1722408284895,-735.42,0.00044383,120]
[333721843,1722408284929,-755.15,0.00044383,120]
[333721844,1722408284963,-2210.28,0.00044383,120]
[333721845,1722408284998,-1758.5,0.00044383,120]
[333721846,1722408285035,-811.29,0.00044383,120]
[333721847,1722408285070,-500.0,0.00044383,120]
[333721848,1722408285105,-500.0,0.00044383,120]
[333721849,1722408285140,-500.0,0.00044383,120]
[333721850,1722408285174,-766.29,0.00044383,120]
[333721851,1722408285209,-500.0,0.00044383,120]
[333721852,1722408285243,-2182.13,0.00044383,120]
[333721853,1722408285274,-662.67,0.00044383,120]
[333721854,1722408285306,-500.0,0.00044383,120]
[333721855,1722408285338,-500.0,0.00044383,120]
[333721856,1722408285371,-500.0,0.00044383,120]
[333721857,1722408285403,-500.0,0.00044383,120]
[333721858,1722408285436,-581.13,0.00044383,120]
[333721859,1722408285472,-500.0,0.00044383,120]
[333721860,1722408285505,-500.0,0.00044383,120]
[333721861,1722408285538,-500.0,0.00044383,120]
[333721862,1722408285780,-500.0,0.00044383,120]
[333721863,1722408285816,-4721.93,0.00044383,120]
[333721864,1722408285852,-500.0,0.00044383,120]
[333721865,1722408285886,-500.0,0.00044383,120]
[333721866,1722408285918,-500.0,0.00044383,120]
[333721867,1722408285952,-628.83,0.00044383,120]
[333721868,1722408285986,-572.92,0.00044383,120]
[333721869,1722408286019,-500.0,0.00044383,120]
[333721870,1722408286052,-3052.94,0.00044383,120]
[333721871,1722408286086,-1029.4,0.00044383,120]
[333721872,1722408286122,-500.0,0.00044383,120]
[333721873,1722408286157,-2476.98,0.00044383,120]
[333721874,1722408286191,-1397.97,0.00044383,120]
[333721875,1722408286227,-3062.94,0.00044383,120]
[333721876,1722408286262,-500.0,0.00044383,120]
[333721877,1722408286296,-500.0,0.00044383,120]
[333721878,1722408286330,-500.0,0.00044383,120]
[333721879,1722408286364,-1434.58,0.00044383,120]
[333721880,1722408286398,-507.05,0.00044383,120]
[333721881,1722408286431,-555.08688774,0.00044383,120]
[333721882,1722408286465,-1245.56,0.00044383,120]
[333721883,1722408286498,-3671.23,0.00044383,120]
[333721884,1722408286533,-500.0,0.00044383,120]
[333721885,1722408286568,-908.54,0.00044383,120]
[333721886,1722408286602,-500.0,0.00044383,120]
[333721887,1722408286635,-500.0,0.00044383,120]
[333721888,1722408286668,-522.1,0.00044383,120]
[333721889,1722408286700,-500.0,0.00044383,120]
[333721890,1722408286735,-1689.03,0.00044383,120]
[333721891,1722408286771,-500.0,0.00044383,120]
[333721892,1722408286803,-553.23,0.00044383,120]
[333721893,1722408286837,-500.0,0.00044383,120]
[333721894,1722408286871,-500.0,0.00044383,120]
[333721895,1722408286904,-500.0,0.00044383,120]
[333721896,1722408286940,-500.0,0.00044383,120]
[333721897,1722408286979,-505.64,0.00044383,120]
[333721898,1722408287012,-1090.76,0.00044383,120]
[333721899,1722408287044,-500.0,0.00044383,120]
[333721900,1722408287078,-1595.68,0.00044383,120]
[333721901,1722408287112,-500.0,0.00044383,120]
[333721902,1722408287147,-500.0,0.00044383,120]
[333721903,1722408287179,-500.0,0.00044383,120]
[333721904,1722408287214,-886.85,0.00044383,120]
[333721905,1722408287247,-1436.92,0.00044383,120]
[333721906,1722408287278,-500.0,0.00044383,120]
[333721907,1722408287310,-500.0,0.00044383,120]
[333721908,1722408287342,-980.83,0.00044383,120]
[333721909,1722408287374,-500.0,0.00044383,120]
[333721910,1722408287406,-961.32,0.00044383,120]
[333721911,1722408287438,-500.0,0.00044383,120]
[333721912,1722408287471,-500.0,0.00044383,120]
[333721913,1722408287503,-500.0,0.00044383,120]
[333721914,1722408287537,-500.0,0.00044383,120]
[333721915,1722408287569,-500.0,0.00044383,120]
[333721916,1722408287602,-619.58,0.00044383,120]
[333721917,1722408287636,-500.0,0.00044383,120]
[333721918,1722408287671,-500.0,0.00044383,120]
[333721919,1722408287705,-1324.4,0.00044383,120]
[333721920,1722408287741,-1734.37,0.00044383,120]
[333721921,1722408287775,-916.88,0.00044383,120]
[333721922,1722408287810,-500.0,0.00044383,120]
[333721923,1722408287843,-1450.39,0.00044383,120]
[333721924,1722408287876,-500.0,0.00044383,120]
[333721925,1722408287911,-500.0,0.00044383,120]
[333721926,1722408287948,-978.51,0.00044383,120]
[333721927,1722408287982,-500.0,0.00044383,120]
[333721928,1722408288018,-500.0,0.00044383,120]
[333721929,1722408288051,-500.0,0.00044383,120]
[333721930,1722408288082,-250.64345768,0.00044383,120]
[333721931,1722408288117,-637.16,0.00044383,120]
[333721932,1722408288150,-500.0,0.00044383,120]
[333721933,1722408288183,-500.0,0.00044383,120]
[333721934,1722408288217,-519.36007046,0.00044383,120]
[333721935,1722408288251,-3055.94,0.00044383,120]
[333721936,1722408288285,-500.0,0.00044383,120]
[333721937,1722408288318,-3428.21,0.00044383,120]
[333721938,1722408288351,-500.0,0.00044383,120]
[333721939,1722408288389,-1042.76,0.00044383,120]
[333721940,1722408288423,-500.0,0.00044383,120]
[333721941,1722408288457,-1046.47,0.00044383,120]
[333721942,1722408288490,-1739.19,0.00044383,120]
[333721943,1722408288522,-500.0,0.00044383,120]
[333721944,1722408288555,-500.0,0.00044383,120]
[333721945,1722408288590,-500.0,0.00044383,120]
[333721946,1722408288623,-3676.51,0.00044383,120]
[333721947,1722408288657,-500.0,0.00044383,120]
[333721948,1722408288692,-641.96,0.00044383,120]
[333721949,1722408288726,-500.0,0.00044383,120]
[333721950,1722408288762,-500.0,0.00044383,120]
[333721951,1722408288796,-708.85,0.00044383,120]
[333721952,1722408288830,-4147.58,0.00044383,120]
[333721953,1722408288863,-500.0,0.00044383,120]
[333721954,1722408288896,-500.0,0.00044383,120]
[333721955,1722408288928,-500.0,0.00044383,120]
[333721956,1722408288961,-500.0,0.00044383,120]
[333721957,1722408288994,-500.0,0.00044383,120]